bitfinex-derivatives/quotes_ETHF0:USTF0_20250910
["timestamp","ask_amount","ask_price","bid_price","bid_amount"]
[1757527009310,0.8568,4365.5,4365.4,3.2078]
[1757527011208,0.4428,4365.5,4365.4,3.2078]
[1757527011510,0.5526,4365.8,4365.4,3.2078]
[1757527011814,0.3176,4365.7,4365.4,3.2078]
[1757527012112,0.235,4365.8,4365.4,3.2078]
[1757527012605,0.3176,4365.7,4365.4,3.2078]
[1757527013511,0.235,4365.8,4365.4,3.2078]
[1757527013711,0.3176,4365.7,4365.4,3.2078]
[1757527014306,0.4423,4365.8,4365.4,3.2078]
[1757527014509,0.3176,4365.7,4365.4,3.2078]
[1757527015015,0.6501,4365.5,4365.4,3.2078]
[1757527015315,0.8568,4365.5,4365.4,3.2078]
[1757527017208,0.4428,4365.5,4365.4,3.2078]
[1757527018110,0.1252,4366.0,4365.4,3.62005]
[1757527019413,0.4488,4366.0,4365.9,3.2078]
[1757527020307,0.3236,4366.0,4365.9,3.2078]
[1757527020614,0.6838,4366.5,4365.9,3.2078]
[1757527021514,0.3602,4366.5,4365.9,3.2078]
[1757527022005,0.3602,4366.5,4366.4,3.2078]
[1757527022204,0.6838,4366.5,4366.4,3.2078]
[1757527023515,0.8937,4366.5,4366.4,3.2078]
[1757527024817,0.235,4366.5,4366.4,3.2078]
[1757527025113,0.235,4366.7,4366.4,3.2078]
[1757527025314,0.5586,4366.7,4366.4,3.2078]
[1757527025517,0.235,4366.7,4366.4,3.2078]
[1757527025717,0.3236,4366.6,4366.4,3.2078]
[1757527027009,0.5586,4366.7,4366.4,3.2078]
[1757527027211,0.235,4366.7,4366.4,3.2078]
[1757527028813,0.5399,4366.5,4366.4,3.2078]
[1757527029013,0.4535,4366.5,4366.4,3.2078]
[1757527029916,0.6885,4366.5,4366.4,3.2078]
[1757527030315,0.4535,4366.5,4366.4,3.2078]
[1757527030519,0.6885,4366.5,4366.4,3.2078]
[1757527031320,0.8984,4366.5,4366.4,3.2078]
[1757527031614,0.235,4366.5,4366.4,3.2078]
[1757527031821,0.235,4366.5,4366.4,3.61996]
[1757527032019,0.235,4366.9,4366.6,0.41213]
[1757527032216,0.4485,4367.0,4366.7,0.41213]
[1757527032413,0.1249,4367.0,4366.9,3.61991]
[1757527032618,0.5586,4367.3,4366.9,3.61991]
[1757527032921,0.3236,4367.2,4366.9,3.61991]
[1757527033224,0.235,4367.3,4366.9,3.61991]
[1757527033225,0.235,4367.3,4367.1,0.41209]
[1757527033424,0.3236,4367.2,4367.1,0.41209]
[1757527034316,0.235,4367.3,4367.2,0.41209]
[1757527034719,0.5586,4367.3,4367.0,0.4121]
[1757527034919,0.3236,4367.2,4367.0,0.4121]
[1757527035315,0.3236,4367.2,4367.0,4.6471]
[1757527035719,0.5586,4367.3,4367.0,4.6471]
[1757527036221,0.5586,4367.3,4367.1,0.41209]
[1757527036723,0.3236,4367.2,4367.0,4.235]
[1757527037221,0.3236,4367.2,4367.0,4.6471]
[1757527037817,0.3236,4367.4,4367.1,0.41209]
[1757527038322,0.1299,4367.5,4367.0,0.42175645]
[1757527038625,0.1299,4367.5,4367.4,3.2078]
[1757527038626,0.4535,4367.5,4367.4,3.2078]
[1757527042720,0.1299,4367.5,4367.4,3.85487]
[1757527043027,0.4535,4367.5,4367.4,3.4428]
[1757527044027,0.4535,4367.5,4367.4,3.85487]
[1757527045521,0.4535,4367.5,4367.4,3.4428]
[1757527045718,0.6634,4367.5,4367.4,3.85487]
[1757527045918,0.6634,4367.5,4367.4,3.85387]
[1757527046326,0.6634,4367.5,4367.4,3.4418]
[1757527047825,0.8635,4367.5,4367.4,3.2078]
[1757527048025,0.6634,4367.5,4367.4,3.2078]
[1757527048223,0.4535,4367.5,4367.4,3.61987]
[1757527048725,0.4535,4367.5,4367.4,3.2078]
[1757527049123,0.664,4367.5,4367.4,3.2078]
[1757527049432,0.4535,4367.5,4367.4,3.2078]
[1757527049630,0.4535,4367.5,4367.4,3.61987]
[1757527052235,0.4535,4367.5,4367.4,3.2078]
[1757527052531,0.664,4367.5,4367.4,3.2078]
[1757527053335,0.664,4367.5,4367.4,3.61987]
[1757527053831,0.4535,4367.5,4367.4,3.61987]
[1757527054231,0.664,4367.5,4367.4,3.61987]
[1757527054432,0.4535,4367.5,4367.4,3.61987]
[1757527065848,0.4535,4367.5,4367.4,3.80589718]
[1757527066149,0.664,4367.5,4367.4,3.61987]
[1757527066740,0.8757,4367.5,4367.4,3.85387]
[1757527070344,0.8757,4367.5,4367.4,3.2078]
[1757527070546,5.10467,4367.5,4367.4,3.2078]
[1757527070739,4.8757,4367.5,4367.4,3.2078]
[1757527075045,0.8757,4367.5,4367.4,3.2078]
[1757527076346,0.8757,4367.5,4367.4,3.61987]
[1757527078052,0.8757,4367.5,4367.4,3.2078]
[1757527078253,0.8757,4367.5,4367.4,3.61987]
[1757527080254,0.8757,4367.5,4367.4,3.2078]
[1757527081055,0.8757,4367.5,4367.4,3.61987]
[1757527083149,0.8757,4367.5,4367.4,3.2078]
[1757527083855,0.8757,4367.5,4367.4,3.61987]
[1757527087956,0.664,4367.5,4367.4,3.61987]
[1757527088157,0.4535,4367.5,4367.4,3.61987]
[1757527091859,0.8643,4367.5,4367.4,3.61987]
[1757527092055,0.4535,4367.5,4367.4,3.61987]
[1757527094464,0.4535,4367.5,4367.4,3.85387]
[1757527097253,0.3034,4367.9,4367.8,0.41203]
[1757527097460,0.3034,4367.9,4367.8,0.64603]
[1757527098960,0.4333,4368.0,4367.9,0.41202]
[1757527099152,0.4333,4368.0,4367.9,3.85382]
[1757527100159,0.17,4368.9,4368.4,0.41197]
[1757527100366,0.17,4368.9,4368.4,3.85377]
[1757527100761,0.4333,4368.5,4368.4,3.85377]
[1757527100965,0.17,4368.9,4368.8,0.41193]
[1757527101166,0.17,4368.9,4368.8,0.64593]
[1757527101760,0.4734,4368.9,4368.8,0.64593]
[1757527102561,0.17,4368.9,4368.8,4.64593]
[1757527102962,0.4734,4368.9,4368.8,4.64593]
[1757527103363,0.17,4368.9,4368.8,4.64593]
[1757527103563,0.4734,4368.9,4368.8,4.64593]
[1757527103768,0.4734,4368.9,4368.8,0.64593]
[1757527104064,0.6809,4368.9,4368.7,0.41194]
[1757527104258,0.3034,4368.8,4368.7,0.41194]
[1757527104460,0.5109,4368.8,4368.7,0.64594]
[1757527105568,0.5109,4368.8,4368.7,0.82938134]
[1757527105765,0.6309,4368.5,4368.4,3.2078]
[1757527106069,0.8342,4368.5,4368.4,3.4418]
[1757527106570,0.8342,4368.5,4368.4,3.2078]
[1757527106771,0.8342,4368.5,4368.4,3.4418]
[1757527107973,0.8342,4368.5,4368.4,3.2078]
[1757527109576,4.8342,4368.5,4368.4,3.2078]
[1757527114188,0.8342,4368.5,4368.4,3.2078]
[1757527115079,0.8342,4368.5,4368.4,3.49159895]
[1757527119882,0.8342,4368.5,4368.4,3.2078]
[1757527122188,0.8342,4368.5,4365.4,11.46865114]
[1757527122189,0.7177,4367.9,4367.8,3.2078]
[1757527122882,0.1218,4367.5,4367.3,0.234]
[1757527123185,0.5084,4367.4,4367.3,0.234]
[1757527123387,0.2093,4367.4,4367.0,3.6199]
[1757527123689,0.2991,4367.4,4367.1,0.64609]
[1757527123890,0.1218,4367.5,4367.1,0.64609]
[1757527124186,0.2991,4367.4,4367.1,0.64609]
[1757527124576,0.2991,4367.4,4367.1,0.234]
[1757527125492,0.5084,4367.4,4367.1,0.234]
[1757527126475,0.1218,4367.5,4367.2,0.41208]
[1757527126679,0.2991,4367.4,4367.2,0.64608]
[1757527127387,0.2991,4367.4,4367.3,0.41207]
[1757527127789,0.2991,4367.4,4367.2,0.234]
[1757527127987,0.1218,4367.5,4367.2,0.64608]
[1757527128287,0.2991,4367.4,4367.2,0.64608]
[1757527128682,0.1218,4367.5,4367.3,0.41207]
[1757527128892,0.2991,4367.4,4367.3,0.41207]
[1757527129888,0.1218,4367.5,4367.2,0.234]
[1757527130187,0.1218,4367.5,4367.2,0.64609]
[1757527130389,0.2991,4367.4,4367.3,0.41208]
[1757527130583,0.2991,4367.4,4367.2,0.64608]
[1757527130984,0.5084,4367.4,4367.2,0.234]
[1757527131287,0.5084,4367.2,4367.1,0.234]
[1757527131488,0.5084,4367.2,4367.0,3.2078]
[1757527131687,0.4186,4367.2,4367.0,3.2078]
[1757527132079,0.2991,4367.1,4367.0,3.2078]
[1757527132282,0.7177,4367.1,4367.0,3.2078]
[1757527140190,0.3047,4366.4,4366.3,3.4418]
[1757527140491,0.7132,4366.4,4366.3,3.2078]
[1757527142291,0.5024,4366.4,4366.3,3.2078]
[1757527142593,0.3047,4366.4,4366.3,3.2078]
[1757527143189,0.234,4366.8,4366.3,3.2078]
[1757527143390,0.3047,4366.4,4366.3,3.2078]
[1757527146791,0.1303,4366.5,4366.3,3.2078]
[1757527146995,0.3047,4366.4,4366.3,3.2078]
[1757527149797,0.3047,4366.4,4366.3,3.61997]
[1757527150992,0.3047,4366.4,4366.3,3.2078]
[1757527151694,0.3047,4366.4,4366.3,3.61997]
[1757527152089,0.3047,4366.4,4366.3,3.2078]
[1757527152294,0.5024,4366.4,4366.3,3.2078]
[1757527152697,0.7132,4366.4,4366.3,3.2078]
[1757527154393,0.3047,4366.4,4366.3,3.61997]
[1757527157002,0.3047,4366.4,4366.3,3.2078]
[1757527157596,0.3047,4366.4,4366.3,3.61997]
[1757527163108,0.435,4366.5,4366.4,0.41216]
[1757527164710,0.5388,4366.5,4366.3,3.2078]
[1757527165013,0.7132,4366.4,4366.3,3.2078]
[1757527166311,0.7132,4366.4,4366.3,3.61997]
[1757527166511,0.5024,4366.4,4366.3,3.61997]
[1757527166713,0.3047,4366.4,4366.3,3.61997]
[1757527167009,0.516,4366.4,4366.3,3.61997]
[1757527167311,0.3047,4366.4,4366.3,3.61997]
[1757527168207,0.516,4366.4,4366.3,3.2078]
[1757527168408,0.516,4366.4,4366.3,3.61997]
[1757527168608,0.3047,4366.4,4366.3,3.61997]
[1757527168810,0.516,4366.4,4366.3,3.2078]
[1757527169514,0.516,4366.4,4366.3,3.61997]
[1757527170011,0.516,4366.4,4366.3,3.2078]
[1757527170715,0.516,4366.4,4366.3,3.61997]
[1757527171215,0.3047,4366.4,4366.3,3.61997]
[1757527171511,0.2996,4366.8,4366.3,4.23823]
[1757527171815,0.2996,4366.9,4366.6,0.41213]
[1757527172008,0.5109,4366.9,4366.8,3.2078]
[1757527173915,0.5109,4366.9,4366.8,3.61992]
[1757527174316,0.5109,4366.9,4366.8,3.2078]
[1757527177819,0.2996,4366.9,4366.8,3.61992]
[1757527179021,0.4299,4367.5,4367.4,0.41207]
[1757527179217,0.4299,4367.5,4367.4,3.85287]
[1757527185619,0.4299,4368.0,4367.9,0.41202]
[1757527185816,0.4299,4368.0,4367.9,3.61982]
[1757527190127,0.4299,4368.0,4367.9,3.79925528]
[1757527191729,0.4299,4368.0,4367.9,3.61982]
[1757527191934,0.6412,4368.0,4367.9,3.61982]
[1757527193227,0.6412,4368.0,4367.9,3.2078]
[1757527193228,0.8551,4368.0,4367.9,3.2078]
[1757527193527,0.8551,4368.0,4367.9,3.61982]
[1757527195329,0.4299,4368.0,4367.9,3.61982]
[1757527196029,0.6412,4368.0,4367.9,3.61982]
[1757527196532,0.8551,4368.0,4367.9,3.61982]
[1757527199021,0.6412,4368.0,4367.9,3.61982]
[1757527199331,0.4299,4368.0,4367.9,3.61982]
[1757527199732,0.6324,4368.0,4367.9,3.61982]
[1757527200231,0.8468,4368.0,4367.9,3.2078]
[1757527200626,1.07574,4368.0,4367.9,3.2078]
[1757527200827,5.07574,4368.0,4367.5,0.18054347]
[1757527201034,0.539,4367.0,4366.5,3.2078]
[1757527201230,0.7176,4366.6,4366.0,0.233]
[1757527201429,0.1221,4366.0,4365.6,3.2078]
[1757527201637,0.4169,4365.7,4365.1,2.88732668]
[1757527201843,3.2078,4365.2,4364.5,0.1254]
[1757527202029,3.2078,4364.6,4363.5,0.00985493]
[1757527202226,3.2078,4363.6,4363.5,0.42415493]
[1757527202735,7.2078,4363.6,4363.5,0.00985493]
[1757527203539,3.2078,4363.6,4363.5,0.00985493]
[1757527203838,3.2078,4363.6,4363.5,0.73505493]
[1757527204038,3.4408,4363.6,4363.5,0.73505493]
[1757527204439,3.4408,4363.6,4363.5,0.52755493]
[1757527204631,7.4408,4363.6,4363.5,0.32075493]
[1757527204832,7.4408,4363.6,4363.5,0.00985493]
[1757527205036,3.2078,4363.3,4361.5,0.1254]
[1757527205335,4.233,4363.6,4360.5,0.1254]
[1757527205336,3.2078,4361.9,4360.5,0.1254]
[1757527205539,3.2078,4361.5,4361.4,0.4143]
[1757527205835,3.2078,4362.3,4361.4,0.4143]
[1757527206038,3.2078,4362.3,4362.0,0.1254]
[1757527206240,3.2078,4362.3,4362.1,0.6871]
[1757527206445,3.2078,4362.3,4362.0,0.1254]
[1757527206743,0.237,4362.5,4362.2,0.6871]
[1757527207038,3.2078,4363.3,4363.0,0.1254]
[1757527207236,3.2078,4363.3,4363.1,0.3109]
[1757527207436,0.237,4363.9,4363.5,0.1254]
[1757527207831,3.2078,4363.7,4363.5,0.1254]
[1757527208034,3.2078,4363.7,4363.5,0.4363]
[1757527208638,3.2078,4363.7,4363.6,0.3109]
[1757527209138,3.2078,4364.3,4364.1,0.3109]
[1757527209346,0.237,4364.2,4364.1,0.3109]
[1757527212140,3.2078,4364.3,4364.1,0.3109]
[1757527212340,0.237,4364.2,4364.1,0.3109]
[1757527213844,3.2078,4364.3,4364.1,0.3109]
[1757527213845,3.4448,4364.3,4364.1,0.3109]
[1757527214748,3.4448,4364.3,4364.0,0.1254]
[1757527214943,3.4448,4364.3,4364.1,0.3109]
[1757527215447,3.4448,4364.3,4364.2,0.3109]
[1757527216251,7.4448,4364.3,4364.0,0.1254]
[1757527216446,7.4448,4364.3,4363.6,0.3109]
[1757527216645,3.4448,4364.3,4363.6,0.3109]
[1757527217449,3.2078,4363.7,4363.6,0.3109]
[1757527217650,3.4448,4363.7,4363.6,0.3109]
[1757527218151,7.4448,4363.7,4363.6,0.3109]
[1757527220447,7.4448,4363.7,4363.5,0.1254]
[1757527221447,7.4448,4363.7,4363.5,0.4363]
[1757527224244,7.4448,4363.7,4363.0,0.4363]
[1757527224444,3.2078,4363.1,4363.0,0.4363]
[1757527224749,3.4448,4363.1,4363.0,0.4363]
[1757527224951,3.4448,4363.1,4363.0,0.6431]
[1757527225640,3.4448,4363.1,4363.0,0.8506]
[1757527226646,3.2078,4363.1,4363.0,0.8506]
[1757527226852,3.2078,4364.3,4364.0,0.1233]
[1757527227051,0.237,4364.2,4364.1,0.3164]
[1757527228354,1.07457205,4364.2,4364.1,0.3164]
[1757527229852,1.07357205,4364.2,4364.1,0.727]
[1757527230050,1.07357205,4364.2,4364.1,0.3164]
[1757527233655,1.07357205,4364.2,4364.1,0.727]
[1757527233857,0.83757205,4364.2,4364.1,0.727]
[1757527234555,1.07357205,4364.2,4364.1,0.727]
[1757527236159,1.07357205,4364.2,4364.1,4.727]
[1757527238447,1.07357205,4364.2,4364.1,0.727]
[1757527238651,1.07357205,4364.2,4364.1,0.3164]
[1757527239756,1.07357205,4364.2,4364.0,0.1233]
[1757527239960,2.29175071,4364.2,4364.0,0.1233]
[1757527240157,0.60847205,4364.1,4364.0,0.1233]
[1757527240355,0.60847205,4364.1,4363.7,0.3164]
[1757527240554,3.2078,4363.8,4363.7,0.3164]
[1757527240860,5.27045071,4363.8,4363.7,0.3164]
[1757527241456,4.05227205,4363.8,4363.7,0.3164]
[1757527241658,4.05227205,4363.8,4363.7,0.5174]
[1757527241858,3.81627205,4363.8,4363.7,0.727]
[1757527242355,4.28137205,4363.8,4363.7,0.727]
[1757527243961,4.04537205,4363.8,4363.7,0.727]
[1757527244162,4.28137205,4363.8,4363.7,0.727]
[1757527249462,4.28137205,4363.8,4363.7,4.727]
[1757527249463,0.4651,4363.8,4363.7,4.727]
[1757527251063,3.2078,4364.4,4363.7,5.13941]
[1757527251270,0.84030758,4364.3,4364.2,0.727]
[1757527251563,0.236,4364.3,4364.2,0.727]
[1757527255166,0.236,4364.3,4364.2,0.3164]
[1757527255358,0.236,4364.3,4364.0,0.4397]
[1757527255359,4.236,4364.3,4364.0,0.4397]
[1757527255963,0.235,4364.2,4364.1,0.5174]
[1757527256164,0.235,4364.2,4364.1,0.727]
[1757527256764,3.2078,4364.4,4364.2,0.3247]
[1757527256962,0.235,4364.3,4364.2,0.7563]
[1757527260368,4.235,4364.3,4364.2,0.3247]
[1757527262170,4.235,4364.3,4364.0,0.448]
[1757527262368,0.235,4364.3,4364.0,0.448]
[1757527262668,4.22914,4364.2,4363.5,0.448]
[1757527262964,3.2078,4363.6,4363.2,0.3247]
[1757527263269,0.235,4363.5,4362.0,0.1195]
[1757527263470,0.235,4363.5,4363.1,0.3247]
[1757527263674,3.2078,4363.2,4363.1,0.3247]
[1757527263876,3.4428,4363.2,4363.1,0.3247]
[1757527264862,3.4428,4363.2,4362.0,0.1195]
[1757527265061,3.4428,4363.2,4362.8,0.3247]
[1757527265366,3.2078,4362.9,4362.6,0.3247]
[1757527265567,0.235,4362.8,4362.6,0.3247]
[1757527265772,0.235,4362.8,4362.2,0.3247]
[1757527265963,3.2078,4362.9,4362.8,0.7563]
[1757527266165,3.4428,4362.9,4362.8,0.7563]
[1757527267066,3.4428,4362.9,4362.8,0.3247]
[1757527267265,3.4428,4362.9,4362.0,0.1195]
[1757527267462,3.4428,4362.9,4362.2,0.3247]
[1757527267667,3.4428,4362.9,4362.0,0.1195]
[1757527267668,0.235,4362.8,4362.7,0.7563]
[1757527267867,3.2078,4362.8,4362.7,0.7563]
[1757527268071,3.4428,4362.8,4362.7,0.7563]
[1757527268276,3.2078,4362.8,4362.7,0.7563]
[1757527268475,3.4428,4362.8,4362.7,0.7563]
[1757527269979,3.2078,4363.4,4363.0,0.1195]
[1757527270173,3.2078,4363.4,4363.3,0.7563]
[1757527270474,3.4428,4363.4,4363.3,0.7563]
[1757527270861,3.6521,4363.4,4363.3,0.7563]
[1757527271068,3.4171,4363.4,4363.3,0.7563]
[1757527271267,3.6531,4363.4,4363.3,0.7563]
[1757527271471,3.4438,4363.4,4363.3,0.7563]
[1757527271668,3.2078,4363.4,4363.3,0.7563]
[1757527271869,3.4438,4363.4,4363.3,4.7563]
[1757527272268,3.4438,4363.4,4363.3,0.7563]
[1757527272473,3.6531,4363.4,4363.3,0.7563]
[1757527272770,0.236,4363.4,4363.3,0.7563]
[1757527273576,0.8486,4363.4,4363.3,0.3247]
[1757527273766,4.0564,4363.4,4363.3,0.3247]
[1757527274874,0.4105,4363.2,4363.1,0.5393]
[1757527275073,0.6465,4363.2,4363.1,0.7563]
[1757527275373,0.4453,4363.2,4363.1,0.7563]
[1757527275573,0.8486,4363.2,4363.1,0.5393]
[1757527276176,0.8486,4363.2,4363.1,0.3247]
[1757527276378,0.8486,4363.2,4363.1,0.5393]
[1757527277678,0.6465,4363.2,4363.1,0.5393]
[1757527278278,0.6465,4363.2,4363.1,0.7563]
[1757527278577,0.235,4363.2,4363.1,0.7563]
[1757527278778,0.4443,4363.2,4363.1,0.7563]
[1757527278973,0.4105,4363.2,4363.1,0.7563]
[1757527279172,0.6455,4363.2,4363.1,0.7563]
[1757527284783,0.235,4363.2,4363.1,0.7563]
[1757527284988,3.4366,4363.4,4363.2,0.3247]
[1757527285185,3.4366,4363.4,4363.3,0.7563]
[1757527285390,3.4428,4363.4,4363.3,0.7563]
[1757527288491,3.2078,4363.4,4363.3,0.7563]
[1757527288690,3.4428,4363.4,4363.3,0.7563]
[1757527289390,3.4428,4363.4,4363.3,0.7411]
[1757527292193,3.2078,4363.4,4363.3,0.7411]
[1757527292586,3.4428,4363.4,4363.3,0.7411]
[1757527292888,3.4428,4363.4,4362.4,3.62033]
[1757527293193,3.4428,4363.4,4362.5,0.64173]
[1757527293388,3.4428,4363.4,4362.5,0.41252]
[1757527293892,3.4428,4363.4,4362.4,3.2078]
[1757527294197,3.4428,4363.4,4362.6,0.41251]
[1757527294385,0.235,4363.3,4362.6,0.41251]
[1757527295095,0.235,4363.3,4362.5,0.41253]
[1757527295287,0.235,4363.3,4362.6,0.41252]
[1757527295489,0.235,4363.3,4362.4,3.2078]
[1757527295684,0.235,4363.3,4362.5,0.41253]
[1757527296190,0.235,4363.3,4362.6,0.41252]
[1757527297089,0.235,4363.3,4362.7,0.4125]
[1757527297282,0.235,4363.3,4362.4,3.43701]
[1757527297484,0.235,4363.3,4362.5,0.41252]
[1757527297993,0.235,4363.3,4362.4,3.2078]
[1757527298395,0.235,4363.3,4362.6,0.41252]
[1757527298585,33.014,4364.8,4362.7,0.4125]
[1757527298586,0.235,4363.2,4362.7,0.4125]
[1757527298995,0.235,4363.2,4362.6,0.41252]
[1757527299390,0.235,4363.2,4362.7,0.41251]
[1757527299590,0.2288,4363.1,4362.7,0.41251]
[1757527299891,0.2288,4363.1,4362.5,0.41252]
[1757527300087,0.2288,4363.1,4362.4,3.43701]
[1757527300295,0.2288,4363.1,4362.5,0.41253]
[1757527300485,0.2288,4363.1,4362.6,0.41252]
[1757527301096,0.2288,4363.1,4362.5,0.41252]
[1757527301394,0.2288,4363.1,4362.7,0.41251]
[1757527301595,0.2288,4363.1,4362.7,0.4125]
[1757527302095,0.2288,4363.1,4362.6,0.41252]
[1757527302698,0.2288,4363.1,4362.4,3.62034]
[1757527302899,0.2288,4363.1,4362.4,3.2078]
[1757527303195,0.2288,4363.1,4362.5,0.41252]
[1757527303399,0.2288,4363.1,4362.6,0.41251]
[1757527303598,0.2288,4363.1,4362.7,0.41251]
[1757527304000,0.2288,4363.1,4362.5,0.41253]
[1757527304500,0.2288,4363.1,4362.4,3.2078]
[1757527304501,0.2288,4363.1,4362.4,3.62033]
[1757527305299,0.2288,4363.1,4362.5,0.41252]
[1757527306101,0.2288,4363.1,4362.4,3.62034]
[1757527307002,0.2288,4363.1,4362.4,3.2078]
[1757527308000,0.2288,4363.1,4362.4,3.62033]
[1757527309603,0.2288,4363.1,4362.5,0.41252]
[1757527309802,0.2288,4363.1,4362.7,0.41251]
[1757527311413,0.2288,4363.1,4362.8,0.41249]
[1757527311613,0.2288,4363.1,4362.9,0.41249]
[1757527313518,0.2288,4363.1,4363.0,0.41248]
[1757527316712,0.2288,4363.1,4363.0,0.59701563]
[1757527316919,3.2078,4364.0,4363.8,0.4124]
[1757527317513,3.2078,4364.0,4363.7,0.41241]
[1757527317910,3.2078,4364.0,4363.4,3.2078]
[1757527318310,1.21817866,4366.0,4363.4,3.2078]
[1757527318311,3.2078,4364.6,4364.2,0.41237]
[1757527319218,3.2078,4364.6,4364.0,3.62018]
[1757527319618,3.2078,4364.6,4364.1,0.41237]
[1757527319818,3.2078,4364.6,4364.2,0.41237]
[1757527320013,3.2078,4365.3,4364.0,4.47277]
[1757527320326,3.2078,4365.3,4364.1,3.27662487]
[1757527320327,3.4418,4365.3,4364.1,3.27662487]
[1757527320512,3.4418,4365.3,4364.1,0.64637]
[1757527320712,3.4418,4365.3,4364.3,0.41235]
[1757527321212,3.4418,4365.3,4364.1,0.234]
[1757527321515,3.4418,4365.3,4364.5,0.41234]
[1757527322118,3.2078,4365.3,4364.3,0.41235]
[1757527322313,0.234,4365.2,4364.1,2.08583275]
[1757527322617,0.234,4365.2,4364.6,3.2078]
[1757527323419,3.2078,4365.3,4364.6,3.2078]
[1757527323623,3.2078,4365.3,4364.8,0.4123]
[1757527324019,3.2078,4365.3,4365.0,0.41229]
[1757527324615,33.01,4365.7,4365.0,0.41229]
[1757527324811,33.244,4365.7,4365.1,3.2078]
[1757527325712,36.4518,4365.7,4365.1,3.2078]
[1757527326419,3.2078,4366.3,4365.2,0.41227]
[1757527326624,0.234,4366.0,4365.2,0.41227]
[1757527326924,0.234,4366.0,4365.6,3.2078]
[1757527327128,3.2078,4366.3,4365.6,3.2078]
[1757527327322,0.234,4366.2,4365.6,3.2078]
[1757527329322,3.2078,4366.3,4365.9,0.4122]
[1757527329627,3.2078,4366.3,4365.7,0.41222]
[1757527330327,3.2078,4366.3,4365.8,0.41221]
[1757527330826,3.2078,4366.3,4365.7,0.64622]
[1757527331027,3.2078,4366.3,4365.8,0.41221]
[1757527331523,3.2078,4366.3,4365.9,0.4122]
[1757527331827,0.234,4366.7,4365.7,0.64622]
[1757527332128,3.2078,4367.6,4366.7,0.41213]
[1757527332718,3.2078,4367.6,4366.9,0.41211]
[1757527333128,3.2078,4367.6,4367.0,0.4121]
[1757527333429,3.2078,4367.6,4366.7,4.00437012]
[1757527333726,3.2078,4367.6,4367.3,0.41207]
[1757527333923,3.2078,4367.6,4367.1,0.41209]
[1757527334125,3.2078,4367.6,4367.2,0.41208]
[1757527334426,3.2078,4367.6,4366.9,0.234]
[1757527334630,3.2078,4367.6,4367.2,0.41208]
[1757527334824,3.2078,4367.6,4367.0,0.4121]
[1757527335027,3.2078,4367.6,4366.9,0.64611]
[1757527335322,3.2078,4367.6,4367.2,0.41208]
[1757527335521,3.2078,4367.6,4366.9,0.234]
[1757527335721,0.234,4367.9,4367.5,0.41205]
[1757527335923,0.234,4368.2,4367.3,3.61987]
[1757527336128,0.234,4368.2,4367.5,0.41205]
[1757527336425,0.234,4368.2,4367.3,3.2078]
[1757527336730,0.234,4368.2,4367.5,0.41205]
[1757527337029,0.234,4368.2,4367.3,3.38802125]
[1757527338216,0.234,4368.2,4367.3,3.80009125]
[1757527338525,0.234,4368.2,4367.3,3.38802125]
[1757527339028,0.234,4368.2,4367.3,3.80009125]
[1757527339327,0.234,4368.2,4367.3,3.2078]
[1757527341732,0.234,4368.2,4367.3,3.61987]
[1757527342029,0.234,4368.2,4367.4,0.41206]
[1757527342325,0.234,4368.2,4367.5,0.41205]
[1757527342932,0.234,4368.2,4367.4,0.41207]
[1757527343135,0.234,4368.2,4367.5,0.41205]
[1757527343932,0.234,4368.2,4367.6,0.41204]
[1757527344529,3.2078,4368.3,4367.6,0.41204]
[1757527344834,0.17,4368.9,4367.3,3.38708025]
[1757527345028,0.46293,4368.8,4368.0,3.2078]
[1757527345227,0.17,4368.9,4368.0,3.61981]
[1757527345427,0.17,4368.9,4368.0,3.2078]
[1757527347932,0.17,4368.9,4368.0,3.61981]
[1757527348234,0.17,4368.9,4368.0,3.2078]
[1757527349435,0.39891,4368.9,4368.0,3.2078]
[1757527349636,0.17,4368.9,4368.0,3.2078]
[1757527349836,0.22891,4368.8,4368.0,3.2078]
[1757527350833,0.17,4368.9,4368.0,3.61981]
[1757527351033,0.17,4368.9,4368.0,3.2078]
[1757527351234,0.17,4368.9,4368.0,3.61981]
[1757527352025,0.17,4368.9,4368.1,0.412]
[1757527352229,0.17,4368.9,4368.0,3.2078]
[1757527352430,0.17,4368.9,4368.2,0.41198]
[1757527353135,0.5688,4368.9,4368.8,0.7293]
[1757527353329,0.7708,4368.9,4368.8,0.7293]
[1757527353930,0.7708,4368.9,4368.8,0.528]
[1757527354637,0.7708,4368.9,4368.8,0.3153]
[1757527355138,1.21846283,4369.9,4369.0,0.1247]
[1757527355337,1.21846283,4370.2,4370.0,0.5387]
[1757527355641,0.199,4370.1,4370.0,0.5387]
[1757527356038,0.199,4370.1,4370.0,0.854]
[1757527357637,0.6929,4369.7,4369.6,0.3153]
[1757527357837,0.2941,4369.6,4369.4,0.3153]
[1757527358037,0.6929,4369.5,4369.4,0.3153]
[1757527359841,0.6929,4369.5,4369.4,0.528]
[1757527362131,3.80586017,4369.5,4369.3,0.2127]
[1757527362338,0.6929,4369.4,4369.3,0.528]
[1757527362541,0.6929,4369.4,4369.3,0.7293]
[1757527364038,0.3988,4369.4,4369.3,0.7293]